[Event "*** Titled Tuesday Blitz"]
[Site "Chess.com"]
[Date "2021.03.30"]
[Round "6"]
[White "chess94cu"]
[Black "TigrVShlyape"]
[Result "1-0"]
[WhiteElo "2602"]
[BlackElo "2789"]
[TimeControl "180+1"]
[EndTime "11:07:57 PDT"]
[Termination "chess94cu won on time"]

1. d4 {[%clk 0:03:00.9]} 1... Nf6 {[%clk 0:02:57.5]} 2. c4 {[%clk 0:03:00.8]}
2... e6 {[%clk 0:02:57.4]} 3. Nf3 {[%clk 0:03:00.4]} 3... b6 {[%clk 0:02:55.9]}
4. a3 {[%clk 0:02:59.7]} 4... Bb7 {[%clk 0:02:55.6]} 5. Nc3 {[%clk 0:02:58.4]}
5... d6 {[%clk 0:02:54.6]} 6. e3 {[%clk 0:02:34.2]} 6... g6 {[%clk 0:02:52.4]}
7. Bd3 {[%clk 0:02:33]} 7... Bg7 {[%clk 0:02:51.8]} 8. O-O {[%clk 0:02:33.6]}
8... O-O {[%clk 0:02:50.2]} 9. e4 {[%clk 0:02:34.1]} 9... Nbd7 {[%clk
0:02:49.8]} 10. Qe2 {[%clk 0:02:32.6]} 10... c5 {[%clk 0:02:43.1]} 11. Rd1
{[%clk 0:02:20]} 11... cxd4 {[%clk 0:02:40.2]} 12. Nxd4 {[%clk 0:02:20.9]} 12...
a6 {[%clk 0:02:40]} 13. Bg5 {[%clk 0:02:14.5]} 13... Qc7 {[%clk 0:02:36.1]} 14.
Rac1 {[%clk 0:02:08.1]} 14... Rac8 {[%clk 0:02:35.4]} 15. Nf3 {[%clk 0:01:58.5]}
15... Rfd8 {[%clk 0:02:28.7]} 16. h3 {[%clk 0:01:56.4]} 16... Qb8 {[%clk
0:02:28.2]} 17. Qe3 {[%clk 0:01:52.7]} 17... Re8 {[%clk 0:02:24.2]} 18. Bf4
{[%clk 0:01:49.2]} 18... Nh5 {[%clk 0:02:03.3]} 19. Bh6 {[%clk 0:01:47.9]} 19...
Bh8 {[%clk 0:02:01.4]} 20. Bf1 {[%clk 0:01:42.2]} 20... Ba8 {[%clk 0:01:38.8]}
21. Qd2 {[%clk 0:01:36]} 21... Nc5 {[%clk 0:01:32.7]} 22. Qxd6 {[%clk
0:01:17.2]} 22... Nxe4 {[%clk 0:01:28.6]} 23. Qxb8 {[%clk 0:01:14.9]} 23... Rxb8
{[%clk 0:01:28.1]} 24. Nxe4 {[%clk 0:01:01.9]} 24... Bxe4 {[%clk 0:01:27.7]} 25.
Nd4 {[%clk 0:01:02.8]} 25... e5 {[%clk 0:01:10.7]} 26. Ne2 {[%clk 0:00:55.5]}
26... Ng7 {[%clk 0:01:06.7]} 27. b4 {[%clk 0:00:52.4]} 27... Nf5 {[%clk
0:01:04.3]} 28. Be3 {[%clk 0:00:50.3]} 28... Nxe3 {[%clk 0:01:03.9]} 29. fxe3
{[%clk 0:00:51.2]} 29... Bg7 {[%clk 0:01:00.6]} 30. Nc3 {[%clk 0:00:51.3]} 30...
Ba8 {[%clk 0:00:55.9]} 31. Nd5 {[%clk 0:00:51.3]} 31... a5 {[%clk 0:00:43.7]}
32. e4 {[%clk 0:00:48.2]} 32... f5 {[%clk 0:00:34.4]} 33. Bd3 {[%clk 0:00:43]}
33... axb4 {[%clk 0:00:34]} 34. axb4 {[%clk 0:00:42.1]} 34... Bxd5 {[%clk
0:00:16.9]} 35. cxd5 {[%clk 0:00:40.3]} 35... Bf8 {[%clk 0:00:17]} 36. exf5
{[%clk 0:00:25.6]} 36... e4 {[%clk 0:00:16]} 37. Bc4 {[%clk 0:00:23.8]} 37...
Bd6 {[%clk 0:00:14.1]} 38. fxg6 {[%clk 0:00:22.8]} 38... hxg6 {[%clk 0:00:14]}
39. b5 {[%clk 0:00:20.1]} 39... Kg7 {[%clk 0:00:13.3]} 40. Be2 {[%clk
0:00:20.6]} 40... Bc5+ {[%clk 0:00:12.9]} 41. Kh2 {[%clk 0:00:20.4]} 41... Ra8
{[%clk 0:00:13]} 42. d6 {[%clk 0:00:19.5]} 42... Rad8 {[%clk 0:00:12.6]} 43. d7
{[%clk 0:00:18.7]} 43... Rf8 {[%clk 0:00:12.7]} 44. Bg4 {[%clk 0:00:18.2]} 44...
Kf6 {[%clk 0:00:12.3]} 45. Rd5 {[%clk 0:00:16.9]} 45... e3 {[%clk 0:00:11]} 46.
Re1 {[%clk 0:00:15.8]} 46... Ra8 {[%clk 0:00:10]} 47. Re2 {[%clk 0:00:12.7]}
47... Ke7 {[%clk 0:00:09.5]} 48. Kg3 {[%clk 0:00:09.8]} 48... Bd6+ {[%clk
0:00:08.9]} 49. Rxd6 {[%clk 0:00:07.1]} 49... Kxd6 {[%clk 0:00:09.1]} 50. Rxe3
{[%clk 0:00:07.6]} 50... Kc5 {[%clk 0:00:09.1]} 51. Re5+ {[%clk 0:00:05.9]}
51... Kc4 {[%clk 0:00:08.6]} 52. Re6 {[%clk 0:00:05.9]} 52... Kxb5 {[%clk
0:00:08]} 53. Rxg6 {[%clk 0:00:06.2]} 53... Kc5 {[%clk 0:00:08.1]} 54. Rg5+
{[%clk 0:00:06.8]} 54... Kc4 {[%clk 0:00:06.8]} 55. h4 {[%clk 0:00:07.2]} 55...
Rab8 {[%clk 0:00:06.2]} 56. h5 {[%clk 0:00:05.2]} 56... b5 {[%clk 0:00:06.5]}
57. Be6+ {[%clk 0:00:04.1]} 57... Kd4 {[%clk 0:00:05.4]} 58. h6 {[%clk
0:00:04.3]} 58... Rh8 {[%clk 0:00:05.6]} 59. Rh5 {[%clk 0:00:03.4]} 59... Rb6
{[%clk 0:00:05]} 60. Bf5 {[%clk 0:00:01.3]} 60... Rd6 {[%clk 0:00:03.8]} 61. Kf4
{[%clk 0:00:01.3]} 61... b4 {[%clk 0:00:03.8]} 62. h7 {[%clk 0:00:01.7]} 62...
b3 {[%clk 0:00:04.2]} 63. Rh1 {[%clk 0:00:01]} 63... Kc3 {[%clk 0:00:03.1]} 64.
g4 {[%clk 0:00:01.9]} 64... b2 {[%clk 0:00:03.1]} 65. g5 {[%clk 0:00:02.5]}
65... Rd5 {[%clk 0:00:01.3]} 66. g6 {[%clk 0:00:02.4]} 1-0

[Event "*** Titled Tuesday Blitz"]
[Site "Chess.com"]
[Date "2021.03.30"]
[Round "6"]
[White "Titus369"]
[Black "chessmachine14"]
[Result "1-0"]
[WhiteElo "2525"]
[BlackElo "2325"]
[TimeControl "180+1"]
[EndTime "11:08:09 PDT"]
[Termination "Titus369 won by checkmate"]

1. e4 {[%clk 0:02:56.7]} 1... c5 {[%clk 0:02:59.3]} 2. Nf3 {[%clk 0:02:54.8]}
2... e6 {[%clk 0:02:59.3]} 3. d4 {[%clk 0:02:52.4]} 3... cxd4 {[%clk 0:02:59.1]}
4. Nxd4 {[%clk 0:02:53.3]} 4... Nf6 {[%clk 0:02:59.3]} 5. Nc3 {[%clk 0:02:43.7]}
5... d6 {[%clk 0:02:59.1]} 6. g3 {[%clk 0:02:43.2]} 6... Be7 {[%clk 0:02:57.5]}
7. Bg2 {[%clk 0:02:41.9]} 7... O-O {[%clk 0:02:58.4]} 8. O-O {[%clk 0:02:40]}
8... Nc6 {[%clk 0:02:46.1]} 9. Nxc6 {[%clk 0:02:37.6]} 9... bxc6 {[%clk
0:02:46.4]} 10. e5 {[%clk 0:02:37.7]} 10... Nd5 {[%clk 0:02:46.7]} 11. exd6
{[%clk 0:02:36]} 11... Bxd6 {[%clk 0:02:44.5]} 12. Ne4 {[%clk 0:02:35.1]} 12...
Be7 {[%clk 0:02:43.9]} 13. c4 {[%clk 0:02:33.7]} 13... Nb6 {[%clk 0:02:42.6]}
14. b3 {[%clk 0:02:30]} 14... a5 {[%clk 0:02:42.2]} 15. Be3 {[%clk 0:02:28.8]}
15... a4 {[%clk 0:02:39.9]} 16. Qxd8 {[%clk 0:02:23.7]} 16... Bxd8 {[%clk
0:02:36.2]} 17. Bc5 {[%clk 0:02:22.7]} 17... Re8 {[%clk 0:02:30.4]} 18. Nd6
{[%clk 0:02:23]} 18... Re7 {[%clk 0:02:25.8]} 19. Nxc8 {[%clk 0:02:22.4]} 19...
Rxc8 {[%clk 0:02:26]} 20. Bxe7 {[%clk 0:02:22.2]} 20... Bxe7 {[%clk 0:02:26.9]}
21. Rfd1 {[%clk 0:02:21.3]} 21... Kf8 {[%clk 0:02:19.5]} 22. Rac1 {[%clk
0:02:17.2]} 22... Ke8 {[%clk 0:02:14.8]} 23. c5 {[%clk 0:02:15.9]} 23... Nd5
{[%clk 0:02:13.3]} 24. Bxd5 {[%clk 0:02:13]} 24... exd5 {[%clk 0:02:13.5]} 25.
b4 {[%clk 0:02:13.9]} 25... Rb8 {[%clk 0:01:59.2]} 26. a3 {[%clk 0:02:07.8]}
26... Kd7 {[%clk 0:01:57.8]} 27. Rd3 {[%clk 0:02:05]} 27... Bg5 {[%clk
0:01:54.9]} 28. Re1 {[%clk 0:02:03.1]} 28... h5 {[%clk 0:01:37.4]} 29. Kg2
{[%clk 0:01:59.8]} 29... g6 {[%clk 0:01:36.1]} 30. h4 {[%clk 0:01:58.5]} 30...
Be7 {[%clk 0:01:22.3]} 31. Rf3 {[%clk 0:01:56.5]} 31... f6 {[%clk 0:01:20.9]}
32. Rfe3 {[%clk 0:01:56.7]} 32... Re8 {[%clk 0:00:42.1]} 33. b5 {[%clk
0:01:54.8]} 33... cxb5 {[%clk 0:00:41.6]} 34. c6+ {[%clk 0:01:54.8]} 34... Kxc6
{[%clk 0:00:23.6]} 35. Rxe7 {[%clk 0:01:53.8]} 35... Rd8 {[%clk 0:00:21.7]} 36.
Rc1+ {[%clk 0:01:50.5]} 36... Kd6 {[%clk 0:00:21.2]} 37. Rb7 {[%clk 0:01:50.1]}
37... d4 {[%clk 0:00:20.6]} 38. Rxb5 {[%clk 0:01:49.3]} 38... d3 {[%clk
0:00:20.9]} 39. Rb4 {[%clk 0:01:48.9]} 39... Ke5 {[%clk 0:00:19.8]} 40. Re1+
{[%clk 0:01:48.1]} 40... Kd5 {[%clk 0:00:18.1]} 41. Rd1 {[%clk 0:01:48.1]} 41...
Kc5 {[%clk 0:00:18.1]} 42. Rxa4 {[%clk 0:01:48]} 42... d2 {[%clk 0:00:18.1]} 43.
Rb4 {[%clk 0:01:47.7]} 43... Rd3 {[%clk 0:00:17.5]} 44. Rb2 {[%clk 0:01:47.3]}
44... Rxa3 {[%clk 0:00:15.4]} 45. Rbxd2 {[%clk 0:01:48.2]} 45... Ra6 {[%clk
0:00:13.5]} 46. Rd5+ {[%clk 0:01:49.1]} 46... Kc4 {[%clk 0:00:13.3]} 47. Rd6
{[%clk 0:01:50]} 47... Ra2 {[%clk 0:00:13]} 48. Rxf6 {[%clk 0:01:50.2]} 48...
Rb2 {[%clk 0:00:13.5]} 49. Rxg6 {[%clk 0:01:50.4]} 49... Kc5 {[%clk 0:00:13.5]}
50. Rg5+ {[%clk 0:01:50.7]} 50... Kc6 {[%clk 0:00:13.2]} 51. Rxh5 {[%clk
0:01:51.6]} 51... Kc7 {[%clk 0:00:13.3]} 52. Rdd5 {[%clk 0:01:51.9]} 52... Kc6
{[%clk 0:00:13.7]} 53. Rdg5 {[%clk 0:01:52.8]} 53... Kd6 {[%clk 0:00:14.2]} 54.
Rg6+ {[%clk 0:01:53.3]} 54... Ke7 {[%clk 0:00:14.3]} 55. Rh7+ {[%clk 0:01:54.2]}
55... Kf8 {[%clk 0:00:14.6]} 56. Rgg7 {[%clk 0:01:55.1]} 56... Re2 {[%clk
0:00:13.3]} 57. Ra7 {[%clk 0:01:56]} 57... Re8 {[%clk 0:00:11.6]} 58. Raf7+
{[%clk 0:01:52.7]} 58... Kg8 {[%clk 0:00:11.6]} 59. Rfg7+ {[%clk 0:01:53.6]}
59... Kf8 {[%clk 0:00:12]} 60. Rf7+ {[%clk 0:01:51.8]} 60... Kg8 {[%clk
0:00:12.1]} 61. Rfg7+ {[%clk 0:01:52.7]} 61... Kf8 {[%clk 0:00:12.3]} 62. Rh8+
{[%clk 0:01:53.6]} 62... Kxg7 {[%clk 0:00:12.4]} 63. Rxe8 {[%clk 0:01:54.5]}
63... Kh6 {[%clk 0:00:12.9]} 64. Re5 {[%clk 0:01:54.9]} 64... Kg6 {[%clk
0:00:12.7]} 65. Rg5+ {[%clk 0:01:54.6]} 65... Kf6 {[%clk 0:00:13.6]} 66. Kh3
{[%clk 0:01:54.9]} 66... Kf7 {[%clk 0:00:13.7]} 67. Kh2 {[%clk 0:01:55.5]} 67...
Kf8 {[%clk 0:00:14.6]} 68. Kh1 {[%clk 0:01:56]} 68... Kf7 {[%clk 0:00:15.5]} 69.
Kg1 {[%clk 0:01:56.7]} 69... Kf6 {[%clk 0:00:16.4]} 70. Kf1 {[%clk 0:01:57.3]}
70... Kf7 {[%clk 0:00:17.3]} 71. Ke2 {[%clk 0:01:58]} 71... Kf8 {[%clk
0:00:18.2]} 72. Ke3 {[%clk 0:01:58.7]} 72... Kf7 {[%clk 0:00:19.1]} 73. Kd4
{[%clk 0:01:59.3]} 73... Kf6 {[%clk 0:00:20]} 74. Ke4 {[%clk 0:01:59.7]} 74...
Kf7 {[%clk 0:00:20.9]} 75. Kf4 {[%clk 0:02:00.3]} 75... Kf8 {[%clk 0:00:21.8]}
76. f3 {[%clk 0:02:00.7]} 76... Kf7 {[%clk 0:00:22.7]} 77. Kg4 {[%clk
0:02:01.3]} 77... Kf6 {[%clk 0:00:23.6]} 78. Kh3 {[%clk 0:02:01.7]} 78... Kf7
{[%clk 0:00:24.5]} 79. Kg2 {[%clk 0:02:02.3]} 79... Kf8 {[%clk 0:00:25.4]} 80.
Kf2 {[%clk 0:02:03]} 80... Kf7 {[%clk 0:00:26.3]} 81. Ke2 {[%clk 0:02:03.7]}
81... Kf6 {[%clk 0:00:27.2]} 82. Kd2 {[%clk 0:02:04.4]} 82... Kf7 {[%clk
0:00:28.1]} 83. Kc2 {[%clk 0:02:05.1]} 83... Kf8 {[%clk 0:00:29]} 84. Kb2 {[%clk
0:02:05.8]} 84... Kf7 {[%clk 0:00:29.9]} 85. Kb1 {[%clk 0:02:06.5]} 85... Kf6
{[%clk 0:00:30.8]} 86. Ka1 {[%clk 0:02:07]} 86... Kf7 {[%clk 0:00:31.7]} 87. Ka2
{[%clk 0:02:07.7]} 87... Kf8 {[%clk 0:00:32.6]} 88. Ka3 {[%clk 0:02:08.6]} 88...
Kf7 {[%clk 0:00:33.5]} 89. Ka4 {[%clk 0:02:09.5]} 89... Kf6 {[%clk 0:00:34.4]}
90. Ka5 {[%clk 0:02:10.4]} 90... Kf7 {[%clk 0:00:35.3]} 91. Ka6 {[%clk
0:02:11.3]} 91... Kf8 {[%clk 0:00:36.2]} 92. Ka7 {[%clk 0:02:12.2]} 92... Kf7
{[%clk 0:00:37.1]} 93. Ka8 {[%clk 0:02:13.1]} 93... Kf6 {[%clk 0:00:38]} 94. Kb8
{[%clk 0:02:14]} 94... Kf7 {[%clk 0:00:38.9]} 95. Kb7 {[%clk 0:02:14.9]} 95...
Kf8 {[%clk 0:00:39.8]} 96. Kb6 {[%clk 0:02:15.8]} 96... Kf7 {[%clk 0:00:40.7]}
97. g4 {[%clk 0:02:16.7]} 97... Kf6 {[%clk 0:00:41.6]} 98. Kb5 {[%clk
0:02:17.4]} 98... Kf7 {[%clk 0:00:42.5]} 99. Kb4 {[%clk 0:02:18.3]} 99... Kf8
{[%clk 0:00:43.4]} 100. Kb3 {[%clk 0:02:19.2]} 100... Kf7 {[%clk 0:00:43.6]}
101. Kb2 {[%clk 0:02:20.1]} 101... Kf6 {[%clk 0:00:44.5]} 102. Kb1 {[%clk
0:02:21]} 102... Kf7 {[%clk 0:00:45.4]} 103. Ka1 {[%clk 0:02:21.9]} 103... Kf8
{[%clk 0:00:46.2]} 104. Ka2 {[%clk 0:02:22.8]} 104... Kf7 {[%clk 0:00:47.1]}
105. Ka3 {[%clk 0:02:23.7]} 105... Kf6 {[%clk 0:00:48]} 106. Ka4 {[%clk
0:02:24.6]} 106... Kf7 {[%clk 0:00:48.9]} 107. Ka5 {[%clk 0:02:25.5]} 107... Kf8
{[%clk 0:00:49.8]} 108. Ka6 {[%clk 0:02:26.4]} 108... Kf7 {[%clk 0:00:50.7]}
109. Ka7 {[%clk 0:02:27.3]} 109... Kf6 {[%clk 0:00:51.6]} 110. Ka8 {[%clk
0:02:28.2]} 110... Kf7 {[%clk 0:00:52.5]} 111. Kb8 {[%clk 0:02:29.1]} 111... Kf8
{[%clk 0:00:53.4]} 112. Kb7 {[%clk 0:02:30]} 112... Kf7 {[%clk 0:00:54.3]} 113.
Kb6 {[%clk 0:02:30.9]} 113... Kf6 {[%clk 0:00:55.2]} 114. Kb5 {[%clk 0:02:31.8]}
114... Kf7 {[%clk 0:00:56.1]} 115. Kb4 {[%clk 0:02:32.7]} 115... Kf8 {[%clk
0:00:57]} 116. Kb3 {[%clk 0:02:33.6]} 116... Kf7 {[%clk 0:00:57.9]} 117. Kb2
{[%clk 0:02:34.5]} 117... Kf6 {[%clk 0:00:58.8]} 118. Kb1 {[%clk 0:02:35.4]}
118... Kf7 {[%clk 0:00:59.7]} 119. Kc1 {[%clk 0:02:32]} 119... Kf8 {[%clk
0:01:00.6]} 120. Kc2 {[%clk 0:02:32.9]} 120... Kf7 {[%clk 0:01:01.5]} 121. Kc3
{[%clk 0:02:33.8]} 121... Kf6 {[%clk 0:01:02.4]} 122. Kc4 {[%clk 0:02:34.7]}
122... Kf7 {[%clk 0:01:03.3]} 123. Kc5 {[%clk 0:02:35.6]} 123... Kf8 {[%clk
0:01:04.2]} 124. Kc6 {[%clk 0:02:36.5]} 124... Ke7 {[%clk 0:01:05.1]} 125. Kc7
{[%clk 0:02:37.4]} 125... Kf7 {[%clk 0:01:06]} 126. Kc8 {[%clk 0:02:38.3]}
126... Kf6 {[%clk 0:01:06.9]} 127. Kd8 {[%clk 0:02:34]} 127... Kf7 {[%clk
0:01:07.8]} 128. Kd7 {[%clk 0:02:34.9]} 128... Kf8 {[%clk 0:01:08.7]} 129. Kd6
{[%clk 0:02:35.5]} 129... Kf7 {[%clk 0:01:09.6]} 130. Kd5 {[%clk 0:02:36.4]}
130... Kf6 {[%clk 0:01:10.5]} 131. Kd4 {[%clk 0:02:37.3]} 131... Kf7 {[%clk
0:01:11.4]} 132. Ke4 {[%clk 0:02:38.2]} 132... Kf8 {[%clk 0:01:12.3]} 133. Kf4
{[%clk 0:02:39.1]} 133... Kf7 {[%clk 0:01:13.2]} 134. h5 {[%clk 0:02:39.4]}
134... Kf6 {[%clk 0:01:14.1]} 135. Rg6+ {[%clk 0:02:39.9]} 135... Kf7 {[%clk
0:01:15]} 136. Kg5 {[%clk 0:02:38.8]} 136... Kf8 {[%clk 0:01:15.9]} 137. Kh4
{[%clk 0:02:39]} 137... Kf7 {[%clk 0:01:16.8]} 138. Kh3 {[%clk 0:02:39.9]}
138... Kf8 {[%clk 0:01:17.7]} 139. Kh2 {[%clk 0:02:39.6]} 139... Kf7 {[%clk
0:01:18.6]} 140. Kh1 {[%clk 0:02:40.5]} 140... Kf8 {[%clk 0:01:19.5]} 141. Kg1
{[%clk 0:02:41.4]} 141... Kf7 {[%clk 0:01:20.4]} 142. Kf1 {[%clk 0:02:42.3]}
142... Kf8 {[%clk 0:01:21.1]} 143. Ke1 {[%clk 0:02:43.2]} 143... Kf7 {[%clk
0:01:22]} 144. Kd1 {[%clk 0:02:44.1]} 144... Kf8 {[%clk 0:01:22.9]} 145. Kc1
{[%clk 0:02:45]} 145... Kf7 {[%clk 0:01:23.8]} 146. Kb1 {[%clk 0:02:45.9]}
146... Kf8 {[%clk 0:01:24.7]} 147. Ka1 {[%clk 0:02:46.8]} 147... Kf7 {[%clk
0:01:25.6]} 148. Ka2 {[%clk 0:02:47.7]} 148... Kf8 {[%clk 0:01:26.5]} 149. Kb2
{[%clk 0:02:48.6]} 149... Kf7 {[%clk 0:01:27.4]} 150. Kc2 {[%clk 0:02:49.5]}
150... Kf8 {[%clk 0:01:28.3]} 151. Kd2 {[%clk 0:02:50.4]} 151... Kf7 {[%clk
0:01:29.2]} 152. Ke2 {[%clk 0:02:51.3]} 152... Kf8 {[%clk 0:01:30.1]} 153. Kf2
{[%clk 0:02:47.3]} 153... Kf7 {[%clk 0:01:31]} 154. Kg3 {[%clk 0:02:47.6]}
154... Kf8 {[%clk 0:01:31.9]} 155. Kh3 {[%clk 0:02:47.9]} 155... Kf7 {[%clk
0:01:32.8]} 156. Kh2 {[%clk 0:02:47.1]} 156... Kf8 {[%clk 0:01:33.7]} 157. f4
{[%clk 0:02:47.4]} 157... Kf7 {[%clk 0:01:34.6]} 158. Kh1 {[%clk 0:02:47.9]}
158... Kf8 {[%clk 0:01:35.5]} 159. Kg1 {[%clk 0:02:48.8]} 159... Kf7 {[%clk
0:01:36.4]} 160. Kf1 {[%clk 0:02:49.7]} 160... Kf8 {[%clk 0:01:37.3]} 161. Ke1
{[%clk 0:02:50.6]} 161... Kf7 {[%clk 0:01:38.2]} 162. Kd1 {[%clk 0:02:51.5]}
162... Kf8 {[%clk 0:01:38.7]} 163. Kc1 {[%clk 0:02:52.4]} 163... Kf7 {[%clk
0:01:39.5]} 164. Kb1 {[%clk 0:02:53]} 164... Kf8 {[%clk 0:01:40.4]} 165. Ka1
{[%clk 0:02:53.9]} 165... Kf7 {[%clk 0:01:41.3]} 166. f5 {[%clk 0:02:48]} 166...
Kf8 {[%clk 0:01:42.2]} 167. h6 {[%clk 0:02:47.9]} 167... Kf7 {[%clk 0:01:43.1]}
168. Ka2 {[%clk 0:02:44.8]} 168... Kf8 {[%clk 0:01:44]} 169. Ka3 {[%clk
0:02:45.7]} 169... Kf7 {[%clk 0:01:44.9]} 170. Ka4 {[%clk 0:02:46.6]} 170... Kf8
{[%clk 0:01:45.8]} 171. Ka5 {[%clk 0:02:43.5]} 171... Kf7 {[%clk 0:01:46.7]}
172. Ka6 {[%clk 0:02:44.4]} 172... Kf8 {[%clk 0:01:47.6]} 173. Ka7 {[%clk
0:02:42.7]} 173... Kf7 {[%clk 0:01:48.5]} 174. Ka8 {[%clk 0:02:43.6]} 174... Kf8
{[%clk 0:01:49.4]} 175. Kb8 {[%clk 0:02:43.2]} 175... Kf7 {[%clk 0:01:50.3]}
176. Kb7 {[%clk 0:02:44.1]} 176... Kf8 {[%clk 0:01:51.2]} 177. Kc7 {[%clk
0:02:45]} 177... Kf7 {[%clk 0:01:52.1]} 178. Kc6 {[%clk 0:02:45.9]} 178... Kf8
{[%clk 0:01:53]} 179. Kc5 {[%clk 0:02:46.8]} 179... Kf7 {[%clk 0:01:53.9]} 180.
Kc4 {[%clk 0:02:47.7]} 180... Kf8 {[%clk 0:01:54.8]} 181. Kc3 {[%clk 0:02:48.6]}
181... Kf7 {[%clk 0:01:55.7]} 182. Kc2 {[%clk 0:02:49.5]} 182... Kf8 {[%clk
0:01:56.6]} 183. Kc1 {[%clk 0:02:50.4]} 183... Kf7 {[%clk 0:01:57.5]} 184. Kd1
{[%clk 0:02:51.3]} 184... Kf8 {[%clk 0:01:58.4]} 185. Ke1 {[%clk 0:02:52.2]}
185... Kf7 {[%clk 0:01:59.3]} 186. Kf2 {[%clk 0:02:53.1]} 186... Kf8 {[%clk
0:02:00.2]} 187. Kg3 {[%clk 0:02:54]} 187... Kf7 {[%clk 0:02:01.1]} 188. Kh4
{[%clk 0:02:54.9]} 188... Kf8 {[%clk 0:02:02]} 189. Kh5 {[%clk 0:02:55.8]}
189... Kf7 {[%clk 0:02:02.9]} 190. Kg5 {[%clk 0:02:56.7]} 190... Kf8 {[%clk
0:02:03.8]} 191. Rg7 {[%clk 0:02:51.7]} 191... Ke8 {[%clk 0:02:03.5]} 192. Kh5
{[%clk 0:02:45.6]} 192... Kf8 {[%clk 0:02:04.4]} 193. Kh4 {[%clk 0:02:46.1]}
193... Ke8 {[%clk 0:02:05.3]} 194. Kh3 {[%clk 0:02:47]} 194... Kf8 {[%clk
0:02:06.2]} 195. Kh2 {[%clk 0:02:47.9]} 195... Ke8 {[%clk 0:02:07.1]} 196. f6
{[%clk 0:02:48]} 196... Kf8 {[%clk 0:02:08]} 197. g5 {[%clk 0:02:47.6]} 197...
Ke8 {[%clk 0:02:08.9]} 198. g6 {[%clk 0:02:48.1]} 198... Kf8 {[%clk 0:02:09.8]}
199. h7 {[%clk 0:02:48.7]} 199... Ke8 {[%clk 0:02:10.7]} 200. h8=Q# {[%clk
0:02:49.1]} 1-0